bitfinex-derivatives/quotes_BNBF0:USTF0_20251027
["timestamp","ask_amount","ask_price","bid_price","bid_amount"]
[1761546924354,2.1611392,1151.3,1148.6,0.5818358]
[1761546924658,2.1611392,1151.3,1148.4,1.187]
[1761546924855,2.1611392,1151.3,1148.5,0.58186501]
[1761546925053,2.1611392,1151.3,1148.6,0.58186501]
[1761546925257,2.1611392,1151.3,1148.4,1.187]
[1761546925552,0.15141528,1151.5,1148.5,0.58190421]
[1761546925757,0.15141528,1151.5,1148.6,0.58190421]
[1761546925954,0.15141528,1151.5,1148.7,0.58190421]
[1761546926152,0.15141528,1151.5,1148.4,1.187]
[1761546926357,0.15141528,1151.5,1148.5,0.58192282]
[1761546926557,0.15141528,1151.5,1148.6,0.58192282]
[1761546926857,0.15141528,1151.5,1148.7,0.58192282]
[1761546927160,0.15141528,1151.5,1148.4,1.187]
[1761546927456,0.15141528,1151.5,1148.5,0.58196133]
[1761546927653,0.15141528,1151.5,1148.4,1.187]
[1761546927654,0.15141528,1151.5,1148.6,0.58196133]
[1761546927855,0.15141528,1151.5,1148.7,0.58196133]
[1761546928053,0.15141528,1151.5,1148.4,1.187]
[1761546928259,0.15141528,1151.5,1148.5,0.58198015]
[1761546928453,0.15141528,1151.5,1148.4,1.187]
[1761546928454,0.15141528,1151.5,1148.6,0.58198015]
[1761546928656,0.15141528,1151.5,1148.7,0.58198015]
[1761546928854,0.15141528,1151.5,1148.4,1.187]
[1761546929054,0.15141528,1151.5,1148.5,0.58200909]
[1761546929255,0.15141528,1151.5,1148.6,0.58200909]
[1761546929459,0.15141528,1151.5,1148.7,0.58200909]
[1761546929659,0.15141528,1151.5,1148.4,1.187]
[1761546929859,0.15141528,1151.5,1148.5,0.58201253]
[1761546930062,0.15141528,1151.5,1148.6,0.58201253]
[1761546930256,0.15141528,1151.5,1148.7,0.58201253]
[1761546930561,0.15141528,1151.5,1148.4,1.187]
[1761546930758,0.15141528,1151.5,1148.5,0.5820066]
[1761546930957,0.15141528,1151.5,1148.4,1.187]
[1761546930958,0.15141528,1151.5,1148.6,0.5820066]
[1761546931158,0.15141528,1151.5,1148.7,0.5820066]
[1761546931358,0.15141528,1151.5,1148.4,1.187]
[1761546931561,0.15141528,1151.5,1148.5,0.5820012]
[1761546931860,0.15141528,1151.5,1148.6,0.5820012]
[1761546932065,0.15141528,1151.5,1148.7,0.5820012]
[1761546932364,0.15141528,1151.5,1148.4,1.187]
[1761546932664,0.15141528,1151.5,1148.5,0.58209782]
[1761546932964,0.15141528,1151.5,1148.6,0.58209782]
[1761546933259,0.15141528,1151.5,1148.7,0.58209782]
[1761546933461,0.15141528,1151.5,1148.4,1.187]
[1761546933661,0.15141528,1151.5,1148.5,0.58208553]
[1761546933860,0.15141528,1151.5,1148.6,0.58208553]
[1761546934063,0.15141528,1151.5,1148.4,1.187]
[1761546934263,0.15141528,1151.5,1148.5,0.58208456]
[1761546934461,0.15141528,1151.5,1148.6,0.58208456]
[1761546934666,0.15141528,1151.5,1148.4,1.187]
[1761546934865,0.15141528,1151.5,1148.5,0.58208071]
[1761546935065,0.15141528,1151.5,1148.6,0.58208071]
[1761546935365,0.15141528,1151.5,1148.4,1.187]
[1761546935564,0.15141528,1151.5,1148.5,0.58210178]
[1761546935763,0.15141528,1151.5,1148.6,0.58210178]
[1761546935962,0.15141528,1151.5,1148.4,1.187]
[1761546936264,0.15141528,1151.5,1148.5,0.58211362]
[1761546936464,0.15141528,1151.5,1148.6,0.58211362]
[1761546936665,0.15141528,1151.5,1148.4,1.187]
[1761546936865,0.15141528,1151.5,1148.5,0.58213771]
[1761546937168,0.15141528,1151.5,1148.6,0.58213771]
[1761546937469,0.15141528,1151.5,1148.4,1.187]
[1761546937669,0.15141528,1151.5,1148.5,0.58216363]
[1761546937868,0.15141528,1151.5,1148.6,0.58216363]
[1761546938068,0.15141528,1151.5,1148.4,1.187]
[1761546938266,0.15141528,1151.5,1148.5,0.58216278]
[1761546938469,0.15141528,1151.5,1148.6,0.58216278]
[1761546938769,0.15141528,1151.5,1148.4,1.187]
[1761546939266,2.1611392,1149.7,1148.4,1.187]
[1761546940866,2.1611392,1149.8,1146.6,0.80074736]
[1761546941069,2.1611392,1149.8,1146.7,0.57234491]
[1761546941266,2.1611392,1149.9,1146.8,0.57234491]
[1761546941470,2.1611392,1149.9,1146.9,0.57234491]
[1761546941671,2.1611392,1149.9,1147.0,0.57234491]
[1761546941870,2.1611392,1150.0,1147.1,0.57234491]
[1761546942070,2.1611392,1150.0,1146.3,0.64924276]
[1761546942267,3.0255949,1150.5,1146.4,0.57181818]
[1761546942570,2.1611392,1151.4,1146.5,0.57181818]
[1761546942768,2.1611392,1151.4,1146.6,0.57181818]
[1761546943073,2.1611392,1151.4,1146.7,0.57114682]
[1761546943371,2.1611392,1151.4,1146.8,0.57114682]
[1761546943671,2.1611392,1151.4,1146.9,0.57114682]
[1761546943872,2.1611392,1151.4,1147.0,0.57114682]
[1761546944073,2.1611392,1151.4,1147.1,1.183]
[1761546944570,2.1611392,1151.3,1147.1,1.183]
[1761546945070,2.1611392,1150.8,1147.1,1.183]
[1761546945573,2.1611392,1150.9,1147.1,1.183]
[1761546946175,2.1611392,1150.6,1147.1,1.183]
[1761546947171,2.1611392,1150.8,1147.1,1.183]
[1761546947573,2.1611392,1150.4,1147.1,1.183]
[1761546948577,2.1611392,1150.7,1147.1,1.183]
[1761546949680,2.1611392,1150.8,1147.1,1.183]
[1761546950082,2.1611392,1150.7,1147.1,1.183]
[1761546950577,2.1611392,1150.5,1147.1,1.183]
[1761546951682,2.1611392,1150.6,1147.1,1.183]
[1761546952283,2.1611392,1151.2,1147.1,1.183]
[1761546952683,2.1611392,1151.3,1147.1,1.183]
[1761546955483,2.1611392,1150.7,1147.1,1.183]
[1761546956786,2.1611392,1150.9,1147.1,1.183]
[1761546958397,2.1611392,1151.0,1147.1,1.183]
[1761546958889,2.1611392,1151.1,1147.1,1.183]
[1761546960492,0.15141528,1151.5,1147.1,1.183]
[1761546967791,2.1611392,1150.8,1147.1,1.183]
[1761546969991,2.1611392,1150.8,1146.5,0.64739232]
[1761546970191,2.1611392,1150.8,1146.6,0.56205178]
[1761546970396,2.1611392,1150.8,1146.5,0.64739232]
[1761546970397,2.1611392,1150.8,1146.7,0.56205178]
[1761546970696,2.1611392,1150.8,1146.8,0.56205178]
[1761546970893,2.1611392,1150.8,1146.9,0.56205178]
[1761546971097,2.1611392,1150.8,1146.5,0.64739232]
[1761546971398,2.1611392,1150.6,1146.6,0.56208416]
[1761546971597,2.1611392,1150.6,1146.7,0.56208416]
[1761546971893,2.1611392,1150.6,1146.8,0.56208416]
[1761546972197,2.1611392,1150.6,1146.9,0.56208416]
[1761546972497,3.0255949,1151.0,1146.5,0.64739232]
[1761546972498,2.1611392,1150.7,1147.0,1.106]
[1761546974694,2.1611392,1151.0,1147.0,1.106]
[1761546975099,2.1611392,1151.2,1147.0,1.106]
[1761546975496,2.1611392,1151.3,1147.0,1.106]
[1761546976595,2.1611392,1151.2,1147.0,1.106]
[1761546978899,0.1515894,1150.2,1147.0,1.106]
[1761546981205,2.1611392,1151.1,1147.0,1.106]
[1761546982806,2.1611392,1151.0,1147.0,1.106]
[1761546983506,2.1611392,1150.9,1147.0,1.106]
[1761546985403,2.1611392,1150.8,1147.0,1.106]
[1761546985906,2.1611392,1150.3,1147.0,1.106]
[1761546986508,0.15162969,1149.5,1147.0,1.106]
[1761546994712,2.31276889,1149.5,1147.0,1.106]
[1761546995813,0.15162969,1149.5,1147.0,1.106]
[1761546996316,2.31276889,1149.5,1147.0,1.106]
[1761546997417,2.1611392,1149.4,1147.0,1.106]
[1761546998519,2.1611392,1149.2,1147.1,0.57147505]
[1761546998718,2.1611392,1149.2,1147.2,0.57147505]
[1761546998918,2.1611392,1149.2,1147.0,1.106]
[1761546999116,2.1611392,1149.2,1147.1,0.57147529]
[1761546999315,2.1611392,1149.2,1147.0,1.106]
[1761546999316,2.1611392,1149.2,1147.2,0.57147529]
[1761546999519,2.1611392,1149.2,1147.0,1.106]
[1761546999716,2.1611392,1149.2,1147.1,0.57157554]
[1761546999916,2.1611392,1149.3,1147.2,0.57157554]
[1761547000220,2.1611392,1149.3,1147.0,1.106]
[1761547000521,2.1611392,1149.3,1147.1,0.57159183]
[1761547000721,2.1611392,1149.3,1147.2,0.57159183]
[1761547001021,2.1611392,1149.3,1147.0,1.106]
[1761547001218,2.1611392,1149.3,1147.1,0.57159195]
[1761547001518,2.1611392,1149.3,1147.2,0.57159195]
[1761547001717,2.1611392,1149.3,1147.3,0.57157637]
[1761547001920,2.1611392,1149.3,1147.0,1.106]
[1761547002121,2.1611392,1149.3,1147.1,0.57157364]
[1761547002319,2.1611392,1149.3,1147.2,0.57157364]
[1761547002518,2.1611392,1149.1,1147.3,0.57157364]
[1761547002718,2.1611392,1149.1,1147.4,0.57151651]
[1761547002922,2.1611392,1149.1,1147.0,1.75339232]
[1761547002923,2.31276889,1149.5,1147.0,1.75339232]
[1761547003223,2.31276889,1149.5,1147.1,0.57149228]
[1761547003522,2.31276889,1149.5,1147.2,0.57149228]
[1761547003725,2.31276889,1149.5,1147.3,0.57149228]
[1761547003924,0.15162969,1149.5,1147.4,0.57149228]
[1761547004126,0.15162969,1149.5,1147.5,0.57149228]
[1761547004326,0.15162969,1149.5,1147.2,0.64739232]
[1761547004524,2.1611392,1149.4,1147.3,0.57126424]
[1761547004729,2.1611392,1149.4,1147.4,0.57126424]
[1761547005023,2.1611392,1149.4,1147.5,0.57126424]
[1761547005224,2.1611392,1149.4,1147.2,0.64739232]
[1761547005425,2.1611392,1149.4,1147.3,0.57112953]
[1761547005628,0.15162969,1149.5,1147.4,0.57112953]
[1761547005826,0.15162969,1149.5,1147.5,0.57112953]
[1761547006129,0.15162969,1149.5,1147.6,0.57112953]
[1761547006330,0.15162969,1149.5,1147.7,0.57112953]
[1761547006629,0.15162969,1149.5,1147.3,0.64739232]
[1761547006829,0.15162969,1149.5,1147.4,0.57082397]
[1761547007025,0.15162969,1149.5,1147.5,0.57082397]
[1761547007226,0.15162969,1149.5,1147.6,0.57082397]
[1761547007429,0.15162969,1149.5,1147.7,0.57082397]
[1761547007629,0.15162969,1149.5,1147.3,0.64739232]
[1761547007928,0.15162969,1149.5,1147.4,0.57068881]
[1761547008129,0.15162969,1149.5,1147.5,0.57068881]
[1761547008427,0.15162969,1149.5,1147.6,0.57068881]
[1761547008630,0.15162969,1149.5,1147.7,0.57068881]
[1761547008926,0.15162969,1149.5,1147.4,0.64739232]
[1761547009125,0.15162969,1149.5,1147.5,0.57044834]
[1761547009430,0.15162969,1149.5,1147.6,0.57044834]
[1761547009628,0.15162969,1149.5,1147.7,0.57044834]
[1761547009926,0.15162969,1149.5,1147.8,0.57044834]
[1761547010125,0.15162969,1149.5,1147.4,0.64739232]
[1761547010325,0.15162969,1149.5,1147.5,0.57020259]
[1761547010529,0.15162969,1149.5,1147.6,0.57020259]
[1761547010824,0.15162969,1149.5,1147.7,0.57020259]
[1761547011127,0.15162969,1149.5,1147.8,0.57020259]
[1761547011325,0.15162969,1149.5,1147.4,0.64739232]
[1761547011529,0.15162969,1149.5,1147.5,0.56972127]
[1761547011729,0.15162969,1149.5,1147.6,0.56972127]
[1761547012025,0.15162969,1149.5,1147.7,0.56972127]
[1761547012229,0.15162969,1149.5,1147.8,0.56972127]
[1761547012425,0.15162969,1149.5,1147.4,0.64739232]
[1761547012628,0.15162969,1149.5,1147.5,0.56947697]
[1761547012826,0.15162969,1149.5,1147.6,0.56947697]
[1761547013128,0.15162969,1149.5,1147.7,0.56947697]
[1761547013429,0.15162969,1149.5,1147.8,0.56947697]
[1761547013629,0.15162969,1149.5,1147.4,0.64739232]
[1761547013831,0.15162969,1149.5,1147.5,0.56925631]
[1761547014030,0.15162969,1149.5,1147.6,0.56925631]
[1761547014229,0.15162969,1149.5,1147.7,0.56925631]
[1761547014430,0.15162969,1149.5,1147.4,0.64739232]
[1761547014730,0.15162969,1149.5,1147.5,0.5690718]
[1761547014933,0.15162969,1149.5,1147.6,0.5690718]
[1761547015228,0.15162969,1149.5,1147.7,0.5690718]
[1761547015530,0.15162969,1149.5,1147.4,0.64739232]
[1761547015829,0.15162969,1149.5,1147.5,0.56890718]
[1761547016129,0.15162969,1149.5,1147.6,0.56890718]
[1761547016332,0.15162969,1149.5,1147.7,0.56890718]
[1761547016532,0.15162969,1149.5,1147.7,1.243]
[1761547018134,0.15162969,1149.5,1147.8,0.56859964]
[1761547018431,0.15162969,1149.5,1147.7,1.243]
[1761547018630,0.15162969,1149.5,1147.8,0.56841568]
[1761547018835,0.15162969,1149.5,1147.9,0.56841568]
[1761547019035,0.15162969,1149.5,1147.7,1.243]
[1761547019231,0.15162969,1149.5,1147.8,0.56841099]
[1761547019435,0.15162969,1149.5,1147.9,0.56841099]
[1761547019635,0.15162969,1149.5,1147.7,1.243]
[1761547019835,0.15162969,1149.5,1147.8,0.5682267]
[1761547020036,0.15162969,1149.5,1147.9,0.5682267]
[1761547020237,0.15162969,1149.5,1147.7,1.243]
[1761547020437,0.15162969,1149.5,1147.8,0.56822573]
[1761547020637,0.15162969,1149.5,1147.9,0.56822573]
[1761547020834,0.15162969,1149.5,1147.7,1.243]
[1761547021037,0.15162969,1149.5,1147.8,0.56822501]
[1761547021234,0.15162969,1149.5,1147.9,0.56822501]
[1761547021439,0.15162969,1149.5,1147.7,1.243]
[1761547021640,0.15162969,1149.5,1147.8,0.56804952]
[1761547021840,0.15162969,1149.5,1147.9,0.56804952]
[1761547022041,0.15162969,1149.5,1147.7,1.243]
[1761547022234,0.15162969,1149.5,1147.8,0.56896129]
[1761547022436,0.15162969,1149.5,1147.9,0.56896129]
[1761547022736,0.15162969,1149.5,1147.7,1.243]
[1761547022941,0.15162969,1149.5,1147.8,0.56879651]
[1761547023143,0.15162969,1149.5,1147.9,0.56879651]
[1761547023335,0.15162969,1149.5,1147.7,1.243]
[1761547023538,0.15162969,1149.5,1147.8,0.5686452]
[1761547023737,0.15162969,1149.5,1147.9,0.5686452]
[1761547023937,0.15162969,1149.5,1147.7,1.243]
[1761547024143,0.15162969,1149.5,1147.8,0.56864508]
[1761547024337,0.15162969,1149.5,1147.9,0.56864508]
[1761547024542,0.15162969,1149.5,1147.7,1.243]
[1761547024742,0.15162969,1149.5,1147.8,0.56850245]
[1761547024937,0.15162969,1149.5,1147.9,0.56850245]
[1761547025242,0.15162969,1149.5,1147.7,1.243]
[1761547025441,0.15162969,1149.5,1147.8,0.5683588]
[1761547025638,0.15162969,1149.5,1147.9,0.5683588]
[1761547025838,0.15162969,1149.5,1147.7,1.243]
[1761547026038,0.15162969,1149.5,1147.8,0.56835819]
[1761547026243,2.1611392,1151.2,1147.9,0.56835819]
[1761547026538,0.15149371,1149.7,1147.7,1.243]
[1761547026739,2.1611392,1151.3,1147.8,0.56823327]
[1761547026944,2.1611392,1151.3,1147.9,0.56823327]
[1761547027138,0.1514924,1149.8,1148.0,0.56823327]
[1761547027337,2.1611392,1151.3,1147.7,1.243]
[1761547027537,0.15147921,1149.8,1147.8,0.56804917]
[1761547027743,0.15147921,1149.8,1147.9,0.56804917]
[1761547027944,2.1611392,1151.3,1148.0,0.56804917]
[1761547028144,0.1514858,1149.8,1147.7,1.243]
[1761547028343,2.1611392,1150.9,1147.8,0.5679524]
[1761547028644,0.1514891,1149.8,1147.9,0.5679524]
[1761547028839,0.1514891,1149.8,1147.7,1.243]
[1761547029042,2.1611392,1150.8,1147.8,0.56792238]
[1761547029344,0.15149569,1149.8,1147.9,0.56792238]
[1761547029648,2.1611392,1150.9,1147.7,1.243]
[1761547029842,0.15149569,1149.8,1147.8,0.56780842]
[1761547030038,2.1611392,1150.9,1147.9,0.56780842]
[1761547030341,2.1611392,1150.7,1148.0,0.56780842]
[1761547030542,0.15148811,1150.0,1147.7,1.89039232]
[1761547030740,0.15148811,1150.0,1147.8,0.56759888]
[1761547030939,0.15148811,1150.0,1147.9,0.56759888]
[1761547031143,0.15148811,1150.0,1148.0,0.56759888]
[1761547031341,0.15148811,1150.0,1147.7,1.89039232]
[1761547031545,0.15148811,1150.0,1147.8,0.5674544]
[1761547031745,0.15148811,1150.0,1147.9,0.5674544]
[1761547031945,0.15148811,1150.0,1148.0,0.5674544]
[1761547032144,0.15148811,1150.0,1147.7,1.89039232]
[1761547032342,0.15148811,1150.0,1147.8,0.56736754]
[1761547032642,0.15148811,1150.0,1147.9,0.56736754]
[1761547032841,0.15148811,1150.0,1148.0,0.56736754]
[1761547033041,0.15148811,1150.0,1148.1,0.56734162]
[1761547033241,0.15148811,1150.0,1147.7,1.243]
[1761547033442,0.15148811,1150.0,1147.8,0.56722861]
[1761547033640,0.15148811,1150.0,1147.9,0.56722861]
[1761547033843,0.15148811,1150.0,1148.0,0.56722861]
[1761547034043,0.15148811,1150.0,1147.7,1.243]
[1761547034343,0.15148811,1150.0,1147.8,0.56724566]
[1761547034643,0.15148811,1150.0,1147.9,0.56724566]
[1761547034847,0.15148811,1150.0,1147.7,1.243]
[1761547035048,0.15148811,1150.0,1147.8,0.56721941]
[1761547035248,0.15148811,1150.0,1147.9,0.56721941]
[1761547035544,0.15148811,1150.0,1147.7,1.243]
[1761547035748,0.15148811,1150.0,1147.8,0.5671929]
[1761547035948,0.15148811,1150.0,1147.9,0.5671929]
[1761547036144,0.15148811,1150.0,1147.7,1.243]
[1761547036349,0.15148811,1150.0,1147.8,0.56718879]
[1761547036547,0.15148811,1150.0,1147.9,0.56718879]
[1761547036749,0.15148811,1150.0,1147.4,0.64739232]
[1761547037046,0.15148811,1150.0,1147.5,0.56716555]
[1761547037243,0.15148811,1150.0,1147.6,0.56716555]
[1761547037546,0.15148811,1150.0,1147.7,0.56716555]
[1761547037744,0.15148811,1150.0,1147.8,0.56716555]
[1761547038047,0.15148811,1150.0,1147.9,0.56716555]
[1761547038244,0.15148811,1150.0,1147.4,0.64739232]
[1761547038445,0.15148811,1150.0,1147.5,0.5671453]
[1761547038648,0.15148811,1150.0,1147.6,0.5671453]
[1761547038848,0.15148811,1150.0,1147.7,0.5671453]
[1761547039049,0.15148811,1150.0,1147.8,0.5671453]
[1761547039349,0.15148811,1150.0,1147.9,0.5671453]
[1761547039550,0.15148811,1150.0,1147.4,0.64739232]
[1761547039850,0.15148811,1150.0,1147.5,0.56715515]
[1761547040048,0.15148811,1150.0,1147.6,0.56715515]
[1761547040249,0.15148811,1150.0,1147.7,0.56715515]
[1761547040450,0.15148811,1150.0,1147.8,0.56715515]
[1761547040647,0.15148811,1150.0,1147.9,0.56715515]
[1761547040849,0.15148811,1150.0,1147.6,1.378]
[1761547041145,0.15148811,1150.0,1147.7,0.56716899]
[1761547041348,0.15148811,1150.0,1147.8,0.56716899]
[1761547041548,0.15148811,1150.0,1147.9,0.56716899]
[1761547041745,0.15148811,1150.0,1147.6,1.378]
[1761547041948,0.15148811,1150.0,1147.7,0.56719147]
[1761547042147,0.15148811,1150.0,1147.8,0.56719147]
[1761547042346,0.15148811,1150.0,1147.9,0.56719147]
[1761547042546,0.15148811,1150.0,1147.6,1.378]
[1761547042751,0.15148811,1150.0,1147.7,0.56723133]
[1761547042950,0.15148811,1150.0,1147.8,0.56723133]
[1761547043250,0.15148811,1150.0,1147.9,0.56723133]
[1761547043450,0.15148811,1150.0,1147.6,1.378]
[1761547043648,0.15148811,1150.0,1147.7,0.56735747]
[1761547043848,0.15148811,1150.0,1147.8,0.56735747]
[1761547044050,0.15148811,1150.0,1147.9,0.56735747]
[1761547044248,0.15148811,1150.0,1147.6,1.378]
[1761547044449,0.15148811,1150.0,1147.7,0.56749762]
[1761547044651,0.15148811,1150.0,1147.8,0.56749762]
[1761547044846,0.15148811,1150.0,1147.9,0.56749762]
[1761547045051,0.15148811,1150.0,1148.0,0.56749762]
[1761547045351,0.15148811,1150.0,1147.6,1.378]
[1761547045552,0.15148811,1150.0,1147.7,0.56766245]
[1761547045851,0.15148811,1150.0,1147.8,0.56766245]
[1761547046051,0.15148811,1150.0,1147.9,0.56766245]
[1761547046250,0.15148811,1150.0,1148.0,0.56766245]
[1761547046553,0.15148811,1150.0,1147.6,1.378]
[1761547046853,0.15148811,1150.0,1147.7,0.56784007]
[1761547047053,0.15148811,1150.0,1147.8,0.56784007]
[1761547047253,0.15148811,1150.0,1147.9,0.56784007]
[1761547047452,0.15148811,1150.0,1148.0,0.56784007]
[1761547047649,0.15148811,1150.0,1147.6,1.378]
[1761547047850,0.15148811,1150.0,1147.7,0.56802715]
[1761547048053,0.15148811,1150.0,1147.8,0.56802715]
[1761547048253,0.15148811,1150.0,1147.9,0.56802715]
[1761547048451,0.15148811,1150.0,1148.0,0.56802715]
[1761547048652,0.15148811,1150.0,1147.6,1.378]
[1761547048856,0.15148811,1150.0,1147.7,0.56822838]
[1761547049057,2.1611392,1151.3,1148.0,0.64739232]
[1761547049257,0.15145218,1150.2,1148.1,0.56822838]
[1761547049458,0.15145218,1150.2,1148.2,0.56822838]
[1761547049659,2.1611392,1151.4,1148.3,0.56822838]
[1761547049852,0.15145086,1150.1,1147.9,0.64739232]
[1761547050159,2.1611392,1151.4,1148.2,0.64739232]
[1761547050357,2.1611392,1151.4,1148.3,0.568094]
[1761547050555,0.15145745,1150.1,1148.4,0.568094]
[1761547050758,2.1611392,1151.6,1148.5,0.568094]
[1761547050955,0.15142977,1150.2,1148.6,0.568094]
[1761547051161,0.15142977,1150.2,1148.2,0.64739232]
[1761547051362,2.1611392,1151.6,1148.3,0.61388496]
[1761547051563,0.15142318,1150.2,1148.4,0.61388496]
[1761547051756,0.15142318,1150.2,1148.5,0.61388496]
[1761547052061,0.15142318,1150.2,1148.6,0.61388496]
[1761547052062,0.15142977,1150.2,1148.6,0.61388496]
[1761547052260,0.15142977,1150.2,1148.3,0.64739232]
[1761547052457,2.1611392,1151.3,1148.4,1.26215225]
[1761547052662,2.1611392,1151.5,1148.6,0.64739232]
[1761547052862,2.1611392,1151.5,1148.7,0.61475993]
[1761547052863,0.15141198,1150.6,1148.7,0.61475993]
[1761547053159,2.1611392,1151.5,1148.8,0.61475993]
[1761547053360,0.15139815,1150.6,1148.9,0.61475993]
[1761547053664,3.0255949,1152.0,1149.0,0.61475993]
[1761547053665,2.1611392,1151.6,1149.0,0.61475993]
[1761547053961,0.15138893,1150.6,1148.7,0.64739232]
[1761547054160,2.1611392,1151.7,1148.8,0.61449115]
[1761547054359,2.1611392,1151.7,1148.9,0.61449115]
[1761547054659,0.1513909,1150.6,1149.0,0.61449115]
[1761547054863,2.1611392,1151.7,1149.1,0.61449115]
[1761547055059,0.15136917,1151.1,1148.8,0.64739232]
[1761547055263,0.15136917,1151.1,1148.9,0.61430219]
[1761547055464,0.15136917,1151.1,1149.0,0.61430219]
[1761547055662,0.15136917,1151.1,1149.1,0.61430219]
[1761547055859,0.15136917,1151.1,1149.2,0.61430219]
[1761547056163,0.15136917,1151.1,1149.3,0.61430219]
[1761547056364,0.15136917,1151.1,1149.0,0.64739232]
[1761547056558,0.15136917,1151.1,1149.1,0.61022692]
[1761547056763,0.15136917,1151.1,1149.2,0.61022692]
[1761547056963,0.15136917,1151.1,1149.3,0.61022692]
[1761547057163,0.15136917,1151.1,1148.9,0.64739232]
[1761547057364,0.15136917,1151.1,1149.0,1.25726928]
[1761547057665,0.15136917,1151.1,1149.1,0.60987696]
[1761547057863,0.15136917,1151.1,1149.2,0.60987696]
[1761547058061,0.15136917,1151.1,1149.3,0.60987696]
[1761547058265,0.15136917,1151.1,1149.0,0.64739232]
[1761547058561,0.15136917,1151.1,1149.1,0.60988319]
[1761547058761,0.15136917,1151.1,1149.2,0.60988319]
[1761547058965,0.15136917,1151.1,1149.3,0.60988319]
[1761547059165,0.15136917,1151.1,1149.0,0.64739232]
[1761547059364,0.15136917,1151.1,1149.1,0.60957759]
[1761547059667,0.15136917,1151.1,1149.2,0.60957759]
[1761547059867,0.15136917,1151.1,1149.3,0.60957759]
[1761547060065,0.15136917,1151.1,1149.0,0.64739232]
[1761547060268,0.15136917,1151.1,1149.1,0.60977423]
[1761547060467,0.15136917,1151.1,1149.2,0.60977423]
[1761547060764,0.15136917,1151.1,1149.3,0.60977423]
[1761547060961,0.15136917,1151.1,1149.0,0.64739232]
[1761547061167,0.15136917,1151.1,1149.1,0.60970899]
[1761547061363,0.15136917,1151.1,1149.2,0.60970899]
[1761547061567,0.15136917,1151.1,1148.8,0.64739232]
[1761547061868,0.15136917,1151.1,1148.9,0.60972264]
[1761547062065,0.15136917,1151.1,1149.0,0.60972264]
[1761547062269,0.15136917,1151.1,1149.1,0.60972264]
[1761547062470,0.15136917,1151.1,1149.2,0.60972264]
[1761547062670,0.15136917,1151.1,1148.8,0.64739232]
[1761547062871,0.15136917,1151.1,1148.9,0.6016249]
[1761547063066,0.15136917,1151.1,1149.0,0.6016249]
[1761547063269,0.15136917,1151.1,1149.1,0.6016249]
[1761547063469,0.15136917,1151.1,1149.2,0.6016249]
[1761547063767,0.15136917,1151.1,1148.7,0.64739232]
[1761547063965,0.15136917,1151.1,1148.8,0.60158151]
[1761547064189,0.15136917,1151.1,1148.9,0.60158151]
[1761547064367,0.15136917,1151.1,1149.0,0.60158151]
[1761547064569,0.15136917,1151.1,1149.1,0.60158151]
[1761547064767,0.15136917,1151.1,1148.6,0.64739232]
[1761547064976,0.15136917,1151.1,1148.7,0.60163746]
[1761547065271,0.15136917,1151.1,1148.8,0.60163746]
[1761547065471,0.15136917,1151.1,1148.9,0.60163746]
[1761547065671,0.15136917,1151.1,1149.0,0.60163746]
[1761547065970,0.15136917,1151.1,1149.1,0.60163746]
[1761547066170,0.15136917,1151.1,1148.6,0.64739232]
[1761547066367,0.15136917,1151.1,1148.7,0.60155658]
[1761547066572,0.15136917,1151.1,1148.8,0.60155658]
[1761547066773,0.15136917,1151.1,1148.9,0.60155658]
[1761547066974,0.15136917,1151.1,1149.0,0.60155658]
[1761547067170,0.15136917,1151.1,1149.1,0.60155658]
[1761547067370,0.15136917,1151.1,1148.6,0.64739232]
[1761547067569,0.15136917,1151.1,1148.7,0.60154782]
[1761547067769,0.15136917,1151.1,1148.8,0.60154782]
[1761547067970,0.15136917,1151.1,1148.9,0.60154782]
[1761547068273,0.15136917,1151.1,1149.0,0.60154782]
[1761547068469,0.15136917,1151.1,1148.6,0.64739232]
[1761547068470,0.15136917,1151.1,1149.1,0.60154782]
[1761547068671,0.15136917,1151.1,1148.6,0.64739232]
[1761547068871,0.15136917,1151.1,1148.7,0.60151339]
[1761547069075,0.15136917,1151.1,1148.8,0.60151339]
[1761547069370,0.15136917,1151.1,1148.9,0.60151339]
[1761547069575,0.15136917,1151.1,1149.0,0.60151339]
[1761547069770,0.15136917,1151.1,1149.1,0.60151339]
[1761547069976,0.15136917,1151.1,1148.6,0.64739232]
[1761547070277,0.15136917,1151.1,1148.7,0.60147775]
[1761547070474,0.15136917,1151.1,1148.8,0.60147775]
[1761547070679,0.15136917,1151.1,1148.9,0.60147775]
[1761547070879,0.15136917,1151.1,1149.0,0.60147775]
[1761547071077,0.15136917,1151.1,1149.1,0.60147775]
[1761547071375,0.15136917,1151.1,1148.6,0.64739232]
[1761547071577,0.15136917,1151.1,1148.7,1.24879195]
[1761547071878,0.15136917,1151.1,1148.8,0.60139963]
[1761547072178,0.15136917,1151.1,1148.7,0.64739232]
[1761547072179,0.15136917,1151.1,1148.9,0.60139963]
[1761547072478,0.15136917,1151.1,1149.0,0.60139963]
[1761547072677,0.15136917,1151.1,1149.1,0.60139963]
[1761547072881,0.15136917,1151.1,1148.7,0.64739232]
[1761547073082,0.15136917,1151.1,1148.8,0.60135873]
[1761547073280,0.15136917,1151.1,1148.9,0.60135873]
[1761547073479,0.15136917,1151.1,1149.0,0.60135873]
[1761547073779,0.15136917,1151.1,1149.1,0.60135873]
[1761547074079,0.15136917,1151.1,1148.7,0.64739232]
[1761547074278,0.15136917,1151.1,1148.8,0.60131952]
[1761547074483,0.15136917,1151.1,1148.9,0.60131952]
[1761547074678,0.15136917,1151.1,1149.0,0.60131952]
[1761547074878,0.15136917,1151.1,1149.1,0.60131952]
[1761547075080,0.15136917,1151.1,1148.7,0.64739232]
[1761547075280,0.15136917,1151.1,1148.8,0.60130144]
[1761547075582,0.15136917,1151.1,1148.9,0.60130144]
[1761547075781,0.15136917,1151.1,1149.0,0.60130144]
[1761547075983,0.15136917,1151.1,1149.1,0.60130144]
[1761547076180,0.15136917,1151.1,1148.7,0.64739232]
[1761547076384,0.15136917,1151.1,1148.8,0.60130148]
[1761547076585,0.15136917,1151.1,1148.9,0.60130148]
[1761547076882,0.15136917,1151.1,1149.0,0.60130148]
[1761547077085,0.15136917,1151.1,1149.1,0.60130148]
[1761547077385,0.15136917,1151.1,1148.7,0.64739232]
[1761547077585,0.15136917,1151.1,1148.8,0.60131925]
[1761547077881,0.15136917,1151.1,1148.9,0.60131925]
[1761547078083,0.15136917,1151.1,1149.0,0.60131925]
[1761547078283,0.15136917,1151.1,1149.1,0.60131925]
[1761547078486,0.15136917,1151.1,1148.7,0.64739232]
[1761547078686,0.15136917,1151.1,1148.8,0.60135162]
[1761547078887,0.15136917,1151.1,1148.9,0.60135162]
[1761547079183,0.15136917,1151.1,1149.0,0.60135162]
[1761547079388,0.15136917,1151.1,1149.1,0.60135162]
[1761547079587,0.15136917,1151.1,1148.7,0.64739232]
[1761547079786,0.15136917,1151.1,1148.8,0.60136497]